bitfinex-derivatives/quotes_ETHF0:USTF0_20250331
["timestamp","ask_amount","ask_price","bid_price","bid_amount"]
[1743383065338,1.7714,1801.4,1800.9,1.79]
[1743383065538,2.88174,1801.4,1801.0,1.11056]
[1743383065734,1.7714,1801.4,1801.0,0.00832616]
[1743383065933,3.2078,1801.2,1801.0,0.00832616]
[1743383066137,1.7714,1801.4,1801.0,0.00832616]
[1743383066345,3.2078,1801.2,1801.0,0.00832616]
[1743383067239,1.7714,1801.4,1801.0,0.00832616]
[1743383067541,8.7358,1801.8,1801.0,3.21612616]
[1743383067741,10.4405,1801.8,1801.2,1.11041]
[1743383068047,1.11049,1801.2,1801.0,3.21612616]
[1743383068239,1.1105,1801.2,1801.0,0.00832616]
[1743383068441,1.7047,1801.1,1801.0,0.00832616]
[1743383070238,4.9125,1801.6,1801.0,0.00832616]
[1743383070441,8.7048,1801.8,1801.3,1.11039]
[1743383070642,8.71610289,1802.0,1801.4,4.31809]
[1743383070839,1.11011,1801.8,1801.5,1.6933]
[1743383071044,2.77507,1801.9,1801.2,3.2078]
[1743383071349,3.2078,1801.8,1801.2,3.2078]
[1743383071648,1.1103,1801.5,1801.3,3.2078]
[1743383071854,8.7168,1801.8,1801.1,3.2078]
[1743383071855,1.11033,1801.4,1801.1,3.2078]
[1743383072039,8.7168,1801.8,1801.0,1.11887616]
[1743383072040,1.11039,1801.3,1801.0,1.11887616]
[1743383072352,5.496,1801.4,1801.0,3.21612616]
[1743383072549,5.491,1801.3,1801.0,3.21612616]
[1743383072741,3.2078,1801.7,1801.0,3.21612616]
[1743383073050,1.11039,1801.3,1801.2,3.2078]
[1743383074045,1.11052,1801.1,1801.0,0.00832616]
[1743383074259,8.6868,1801.1,1800.6,3.2078]
[1743383074454,1.11074,1800.8,1800.6,3.2078]
[1743383074753,1.7726,1801.0,1800.6,3.2078]
[1743383074943,1.11064,1800.9,1800.8,3.2078]
[1743383075345,1.78092616,1801.0,1800.8,3.2078]
[1743383075850,2.89153616,1801.0,1800.8,3.2078]
[1743383076046,1.11064,1800.9,1800.8,3.2078]
[1743383076252,1.78092616,1801.0,1800.8,3.2078]
[1743383076253,2.89154616,1801.0,1800.8,3.2078]
[1743383076446,1.11064,1800.9,1800.8,3.2078]
[1743383076848,0.00832616,1801.0,1800.9,1.11064]
[1743383077047,7.1496,1801.9,1800.9,2.88384]
[1743383077249,1.6817,1801.7,1801.4,3.2078]
[1743383077446,1.7016,1801.9,1801.6,3.2078]
[1743383077647,1.11002,1801.9,1801.8,3.2078]
[1743383077849,7.1237,1802.1,1801.8,3.2078]
[1743383078050,1.11002,1801.9,1801.8,3.2078]
[1743383078251,1.11002,1801.9,1801.8,3.21612616]
[1743383079058,5.43,1802.0,1801.8,3.21612616]
[1743383079255,1.11002,1801.9,1801.8,0.00832616]
[1743383079457,2.81642,1801.9,1801.8,0.00832616]
[1743383079654,5.419,1802.0,1801.8,0.00832616]
[1743383079954,1.11002,1801.9,1801.8,0.00832616]
[1743383080350,5.31642,1801.9,1801.8,0.00832616]
[1743383080759,2.81642,1801.9,1801.8,0.00832616]
[1743383080958,5.31642,1801.9,1801.8,0.00832616]
[1743383081558,1.11046,1801.2,1801.1,3.2078]
[1743383081951,1.11042,1801.3,1801.1,3.2078]
[1743383082151,1.11042,1801.3,1801.2,1.7079]
[1743383082855,5.401,1801.5,1801.2,1.7079]
[1743383082856,1.11027,1801.5,1801.2,1.7079]
[1743383083055,1.11027,1801.5,1801.3,3.2078]
[1743383083355,1.11027,1801.5,1801.4,1.7551]
[1743383083557,1.11033,1801.4,1801.3,3.2078]
[1743383083956,5.38,1801.6,1801.3,3.2078]
[1743383084155,1.11033,1801.4,1801.3,3.2078]
[1743383085458,1.11045,1801.2,1801.1,3.21612616]
[1743383086261,2.7763,1801.1,1800.6,5.0102]
[1743383086454,1.11073,1800.8,1800.6,5.0102]
[1743383086849,1.11073,1800.8,1800.7,1.8024]
[1743383087056,1.7999,1801.0,1800.7,1.8024]
[1743383087263,6.46399616,1800.9,1800.8,3.2078]
[1743383087556,1.1107,1800.8,1800.7,1.8024]
[1743383087757,0.00832616,1800.9,1800.7,1.8024]
[1743383087956,1.11896616,1800.9,1800.8,3.2078]
[1743383088154,0.00832616,1800.9,1800.8,3.2078]
[1743383088355,1.11896616,1800.9,1800.8,3.2078]
[1743383088555,1.85172616,1800.9,1800.6,0.00562115]
[1743383088854,1.11076,1800.7,1800.6,0.00562115]
[1743383089461,1.11076,1800.7,1800.6,3.21342115]
[1743383089766,5.32,1800.7,1800.6,3.21342115]
[1743383090159,6.43076,1800.7,1800.6,0.00562115]
[1743383090355,13.80484,1800.7,1800.0,3.2078]
[1743383090561,5.98502,1800.5,1800.0,4.9265]
[1743383090761,1.11113,1800.1,1800.0,4.9265]
[1743383091158,5.7078,1800.1,1799.4,1.11153]
[1743383091464,7.1544,1800.0,1799.5,4.9265]
[1743383091661,0.00832616,1799.9,1799.5,6.03799]
[1743383091864,1.11134,1799.8,1799.5,4.9265]
[1743383092064,1.11138,1799.7,1799.5,4.9265]
[1743383092359,3.2078,1799.8,1798.9,3.2078]
[1743383092563,5.299,1799.7,1799.1,4.986]
[1743383092765,5.299,1799.7,1799.2,3.2078]
[1743383093060,3.2078,1799.8,1799.3,1.7782]
[1743383093464,0.00832616,1799.9,1799.8,1.11132]
[1743383093658,0.00832616,1799.9,1799.8,4.31912]
[1743383093858,1.11958616,1799.9,1799.7,1.7782]
[1743383094164,0.00832616,1799.9,1799.7,1.7782]
[1743383094361,0.00832616,1799.9,1799.8,1.11132]
[1743383094560,0.00832616,1799.9,1799.7,4.986]
[1743383095057,0.00832616,1799.9,1799.7,6.09732]
[1743383095270,0.00832616,1799.9,1799.8,1.11132]
[1743383100556,0.00832616,1799.9,1799.7,4.986]
[1743383100761,0.00832616,1799.9,1799.8,1.11132]
[1743383102761,3.2078,1800.9,1799.9,2.778]
[1743383102963,3.2078,1800.9,1800.2,3.2078]
[1743383103263,3.2078,1800.9,1800.0,6.9923]
[1743383103264,1.11039,1801.4,1801.1,1.11049]
[1743383103459,1.11064,1800.9,1800.8,3.2078]
[1743383103858,1.11079,1800.7,1800.4,4.893]
[1743383104155,1.11073,1800.8,1800.7,0.00832616]
[1743383105065,6.9337,1800.9,1800.7,0.00832616]
[1743383105267,1.11894616,1801.0,1800.7,1.69352616]
[1743383105461,1.11065,1800.9,1800.7,1.69352616]
[1743383105667,1.11892616,1801.0,1800.8,3.2078]
[1743383105967,1.1107,1800.8,1800.7,0.00832616]
[1743383106168,2.83736,1800.9,1800.7,0.00832616]
[1743383106369,9.52375616,1801.0,1800.7,0.00832616]
[1743383106665,8.41312616,1801.0,1800.8,1.11068]
[1743383106866,4.32670616,1801.0,1800.9,1.7232]
[1743383107460,1.1107,1800.8,1800.7,0.00832616]
[1743383107767,4.3185,1800.8,1800.7,0.00832616]
[1743383108162,1.111,1800.4,1800.1,3.2078]
[1743383108362,8.3978,1800.6,1800.1,4.931]
[1743383108569,1.11099,1800.4,1800.1,6.04213]
[1743383108764,1.732,1800.5,1800.3,3.2078]
[1743383108967,5.188,1800.7,1800.2,1.7232]
[1743383109167,3.2078,1800.6,1800.2,1.7232]
[1743383109360,1.732,1800.7,1800.3,1.11098]
[1743383109560,1.732,1800.7,1800.4,1.7232]
[1743383109863,1.11089,1800.5,1800.4,1.7232]
[1743383110265,1.732,1800.7,1800.4,1.7232]
[1743383110460,1.11083,1800.6,1800.5,3.2078]
[1743383110665,1.11089,1800.5,1800.4,1.7232]
[1743383111069,11.57777,1800.9,1800.1,3.2078]
[1743383111070,3.2078,1800.6,1800.1,3.2078]
[1743383111269,1.8209,1800.4,1800.1,4.9044]
[1743383111469,1.11101,1800.3,1800.2,1.6966]
[1743383111872,1.11107,1800.2,1800.1,3.2078]
[1743383112570,5.0287,1800.4,1800.0,1.6966]
[1743383112873,3.2078,1800.2,1800.0,1.6966]
[1743383113069,1.11106,1800.3,1800.0,4.9044]
[1743383113274,3.2078,1800.3,1800.0,1.6966]
[1743383113473,4.9701,1800.5,1800.0,4.9044]
[1743383113669,3.2078,1800.5,1800.0,4.9044]
[1743383113976,0.00832616,1801.0,1800.9,1.11064]
[1743383114173,3.2078,1801.8,1801.3,1.11039]
[1743383114370,3.2078,1801.6,1801.1,3.2078]
[1743383114670,1.7623,1801.7,1801.3,1.11039]
[1743383114870,1.7623,1801.7,1801.2,1.775]
[1743383115071,3.2078,1801.3,1801.2,1.775]
[1743383115372,1.11045,1801.2,1801.1,0.00832616]
[1743383115572,1.11045,1801.2,1800.6,1.1108]
[1743383115573,1.7623,1801.2,1800.6,3.2078]
[1743383115775,1.1107,1800.8,1800.7,1.775]
[1743383116071,1.7623,1801.2,1800.7,1.775]
[1743383116279,1.1107,1800.8,1800.7,1.775]
[1743383116773,1.1107,1800.8,1800.4,3.2078]
[1743383116774,1.11085,1800.6,1800.4,3.2078]
[1743383116977,3.2078,1800.6,1800.2,3.2078]
[1743383117168,4.9157,1801.0,1800.3,1.7785]
[1743383117373,1.11917616,1800.6,1800.3,9.0006754]
[1743383117577,0.00832616,1800.6,1800.4,1.7785]
[1743383117774,0.00832616,1800.6,1800.5,1.11089]
[1743383117976,7.86098,1801.2,1800.8,1.11067]
[1743383118177,1.11052,1801.1,1800.6,4.9863]
[1743383118380,2.8184,1801.2,1801.0,3.2078]
[1743383118676,2.81838,1801.2,1801.0,3.2078]
[1743383118877,1.11055,1801.1,1800.7,2.88925]
[1743383119080,4.9157,1801.2,1800.9,0.00832616]
[1743383119374,8.00438,1801.2,1800.9,0.00832616]
[1743383119579,1.11058,1801.0,1800.9,0.00832616]
[1743383119784,2.8184,1801.2,1800.9,0.00832616]
[1743383119979,2.8184,1801.2,1800.9,1.77472616]
[1743383120479,1.11053,1801.1,1800.9,1.77472616]
[1743383120677,3.21612616,1801.3,1800.9,1.77472616]
[1743383120880,1.8453,1801.9,1801.5,1.11022]
[1743383121178,1.11015,1801.7,1801.6,1.7664]
[1743383121879,1.7884,1801.8,1801.4,1.11033]
[1743383122078,1.79672616,1801.8,1801.5,1.7689]
[1743383122273,1.11021,1801.6,1801.5,1.7689]
[1743383122480,1.79672616,1801.8,1801.2,4.31824]
[1743383122674,1.11016,1801.7,1801.5,3.2078]
[1743383122880,1.11016,1801.7,1801.6,1.7689]
[1743383123185,1.11039,1801.3,1801.2,3.2078]
[1743383123383,1.11037,1801.4,1801.2,3.2078]
[1743383123780,1.11039,1801.3,1801.2,3.2078]
[1743383124083,1.11046,1801.2,1801.0,3.2078]
[1743383124287,1.11044,1801.3,1801.0,3.2078]
[1743383124488,6.94,1801.6,1801.1,1.7689]
[1743383124788,1.11058,1801.0,1800.9,0.00832616]
[1743383125682,4.31838,1801.0,1800.9,0.00832616]
[1743383126186,5.157,1801.5,1800.9,0.00832616]
[1743383126376,1.11039,1801.4,1801.0,3.2078]
[1743383126581,1.681,1801.6,1801.1,1.7295]
[1743383126788,1.11045,1801.2,1801.1,1.7295]
[1743383127095,1.11042,1801.3,1801.1,1.7295]
[1743383127295,1.11045,1801.2,1801.1,1.7295]
[1743383127692,1.11058,1801.0,1800.9,0.00832616]
[1743383128897,2.93088,1801.0,1800.9,0.00832616]
[1743383130200,1.11056,1801.1,1800.9,0.00832616]
[1743383130499,1.11058,1801.0,1800.9,1.76892616]
[1743383131194,6.22858,1801.0,1800.9,0.00832616]
[1743383131495,1.11082,1800.6,1800.5,1.842]
[1743383132194,1.11108,1800.2,1800.0,8.3178]
[1743383132394,1.11936616,1800.3,1800.1,1.842]
[1743383132598,1.11936616,1800.3,1800.1,2.95313]
[1743383132787,1.11936616,1800.3,1800.1,1.842]
[1743383132989,0.00832616,1800.3,1800.2,1.842]
[1743383133198,1.11933616,1800.3,1800.2,5.0498]
[1743383133396,1.11933616,1800.3,1800.2,1.842]
[1743383133600,1.1112,1800.0,1799.9,0.00832616]
[1743383133801,1.11118,1800.1,1799.9,1.85032616]
[1743383134097,1.11108,1800.2,1799.9,2.96155616]
[1743383134286,0.00832616,1800.3,1799.9,2.96155616]
[1743383134287,0.00832616,1800.3,1799.9,1.85032616]
[1743383134494,1.1112,1800.0,1799.9,0.00832616]
[1743383134700,1.1112,1800.0,1799.9,1.91112616]
[1743383135197,1.1112,1800.0,1799.9,0.00832616]
[1743383135395,5.079,1800.1,1799.9,0.00832616]
[1743383135696,6.19018,1800.1,1799.9,0.00832616]
[1743383135906,1.11113,1800.1,1800.0,3.2078]
[1743383136195,5.08032616,1800.3,1799.9,1.91112616]
[1743383136196,0.00832616,1800.3,1799.9,1.91112616]
[1743383136397,1.11934616,1800.3,1800.0,3.2078]
[1743383136603,1.11934616,1800.3,1800.1,1.9028]
[1743383137201,1.11107,1800.2,1800.1,1.9028]
[1743383138096,1.11113,1800.1,1800.0,3.2078]
[1743383138498,5.045,1800.2,1799.9,0.00832616]
[1743383138709,4.319,1800.0,1799.9,0.00832616]
[1743383138998,0.00832616,1800.3,1800.1,1.1111]
[1743383139202,1.11933616,1800.3,1800.2,1.8781]
[1743383139999,2.93903616,1800.3,1800.2,1.8781]
[1743383141298,0.00832616,1800.3,1800.2,5.0859]
[1743383141498,21.31104294,1800.7,1800.2,5.0859]
[1743383141499,21.31104294,1800.7,1800.2,14.87965495]
[1743383141802,1.11068,1800.9,1800.6,3.2078]
[1743383142003,1.11068,1800.9,1800.8,3.2078]
[1743383142201,23.07794294,1801.2,1800.8,3.2078]
[1743383142406,18.08929563,1801.2,1801.1,4.31832]
[1743383142805,18.08929563,1801.2,1801.1,14.14903479]
[1743383142806,8.08149563,1801.2,1801.1,14.14903479]
[1743383143103,5.22019563,1801.2,1801.1,14.14903479]
[1743383143303,0.00832616,1801.3,1801.2,1.11045]
[1743383143809,0.00832616,1801.3,1801.2,10.89090961]
[1743383144408,3.2078,1802.7,1801.2,24.52657288]
[1743383144604,1.10974,1802.4,1802.2,3.2078]
[1743383144803,1.7274,1802.3,1802.2,3.2078]
[1743383145212,1.8206,1802.8,1802.2,14.71060716]
[1743383145407,1.7274,1802.7,1802.4,4.31749]
[1743383145710,2.84526616,1802.7,1802.4,3.2078]
[1743383145910,1.73572616,1802.7,1802.3,0.00832616]
[1743383146208,1.10972,1802.4,1802.3,0.00832616]
[1743383147005,4.54081,1802.4,1801.8,3.2078]
[1743383147213,3.2078,1802.3,1801.8,3.2078]
[1743383147513,3.2078,1802.3,1801.5,6.68343]
[1743383147514,1.1101,1801.8,1801.6,3.2078]
[1743383147705,1.7665,1801.7,1801.6,3.2078]
[1743383148314,1.7665,1801.7,1801.5,0.00832616]
[1743383148514,2.87665,1801.7,1801.5,0.00832616]
[1743383148713,1.7665,1801.7,1801.5,0.00832616]
[1743383149412,1.7665,1801.7,1801.5,1.11858616]
[1743383149614,1.11021,1801.6,1801.5,0.00832616]
[1743383149910,1.11045,1801.2,1801.1,3.2078]
[1743383150108,1.7629,1801.5,1800.9,3.2078]
[1743383150316,1.7629,1801.5,1801.1,1.11048]
[1743383150610,1.7629,1801.5,1801.2,3.2078]
[1743383150816,1.7629,1801.5,1801.4,4.31813]
[1743383151013,1.7629,1801.5,1801.3,1.11035]
[1743383151212,1.7629,1801.5,1801.3,1.11867616]
[1743383151414,1.7629,1801.5,1801.4,3.2078]
[1743383151610,1.7629,1801.5,1801.4,4.31813]
[1743383151817,1.7629,1801.5,1801.4,3.2078]
[1743383152017,2.87317,1801.5,1801.4,3.2078]
[1743383152217,1.7629,1801.5,1801.3,0.00832616]
[1743383152515,1.7629,1801.5,1801.4,3.2078]
[1743383152713,0.00832616,1801.8,1801.7,1.11015]
[1743383153111,3.2078,1802.4,1801.8,2.77513]
[1743383153311,1.7707,1802.3,1802.0,3.2078]
[1743383153614,1.7707,1802.3,1802.1,1.10988]
[1743383153809,1.7707,1802.3,1802.2,1.10984]
[1743383154113,1.10986,1802.2,1802.0,3.2078]
[1743383154312,1.7707,1802.1,1802.0,3.2078]
[1743383154614,0.00832616,1802.4,1802.2,1.10984]
[1743383154809,2.88874616,1802.4,1802.3,3.2078]
[1743383155016,2.88874616,1802.4,1802.1,4.31768]
[1743383155412,0.00832616,1802.4,1802.0,3.2078]
[1743383155609,1.864,1803.0,1802.9,1.10941]
[1743383155809,21.52662497,1803.4,1803.3,1.10916]
[1743383156016,22.63573497,1803.4,1803.1,3.2078]
[1743383156215,22.63573497,1803.4,1803.0,7.29291477]
[1743383156216,1.864,1803.3,1803.0,7.29291477]
[1743383156512,3.2078,1803.2,1802.3,3.2078]
[1743383156718,1.864,1803.1,1802.5,3.2078]
[1743383156920,1.864,1803.1,1803.0,3.2078]
[1743383157415,1.10947,1802.8,1802.7,3.2078]
[1743383157617,1.10953,1802.7,1802.6,0.00832616]
[1743383158622,4.31733,1802.7,1802.6,0.00832616]
[1743383158811,3.2078,1802.7,1802.6,0.00832616]
[1743383159122,1.864,1802.8,1802.6,0.00832616]
[1743383159324,1.864,1802.8,1802.7,4.31733]
[1743383159617,1.10928,1803.2,1802.8,1.10944]
[1743383159817,1.8118,1803.1,1803.0,4.31709]
[1743383160122,1.10912,1803.4,1803.0,3.2078]
[1743383160420,1.8118,1803.2,1803.1,1.10926]
[1743383160618,1.8118,1803.2,1803.1,4.31706]
[1743383160815,2.89481,1803.6,1803.2,1.10922]
[1743383161018,1.1091,1803.4,1803.1,3.2078]
[1743383161320,1.82012616,1803.3,1803.1,4.31707]
[1743383161620,2.92929616,1803.3,1803.0,1.13082]
[1743383161816,1.10925,1803.2,1802.9,4.31718]
[1743383162020,1.8298,1803.1,1802.9,3.2078]
[1743383162213,1.8298,1803.1,1802.6,0.00832616]
[1743383162522,3.2078,1802.8,1802.0,3.2078]
[1743383162727,3.2078,1802.5,1802.0,3.2078]
[1743383162926,1.11007,1801.9,1801.7,3.2078]
[1743383163122,1.11023,1801.6,1801.3,62.08536]
[1743383163317,1.8298,1801.5,1801.3,64.1828]
[1743383163820,1.8298,1801.5,1801.4,1.11033]
[1743383164024,0.00832616,1801.6,1801.5,1.11027]
[1743383164217,0.00832616,1801.6,1801.5,4.31807]
[1743383165120,0.00832616,1801.6,1801.5,6.81807]
[1743383165523,0.00832616,1801.6,1801.5,4.31807]
[1743383165725,1.903,1802.6,1802.5,1.10965]
[1743383166021,1.8865,1802.6,1802.5,3.2078]
[1743383166227,1.8865,1802.6,1802.5,4.31745]
[1743383166617,1.10936,1803.0,1802.5,13.39501778]
[1743383166816,3.2078,1803.7,1802.8,3.2078]
[1743383167022,0.00832616,1802.9,1802.8,3.2078]
[1743383167222,0.00832616,1802.9,1802.8,6.81727]
[1743383167422,0.00832616,1802.9,1802.8,22.29758778]
[1743383167622,1.7592,1803.5,1803.3,1.10912]
[1743383167822,1.7592,1803.5,1803.4,1.1091]
[1743383168024,1.7592,1803.5,1803.3,4.31693]
[1743383168216,1.7592,1803.5,1802.9,3.2078]
[1743383168424,3.2078,1803.3,1802.9,3.2078]
[1743383168625,1.10935,1803.0,1802.9,3.2078]
[1743383168927,2.86847,1803.2,1802.9,3.2078]
[1743383169115,1.7592,1803.2,1802.9,3.2078]
[1743383169321,1.7592,1803.2,1802.6,6.14157]
[1743383169722,1.10957,1802.7,1802.4,0.00832616]
[1743383170027,1.7592,1802.6,1802.4,0.00832616]
[1743383170828,1.10965,1802.5,1802.4,0.00832616]
[1743383171029,1.10972,1802.4,1802.3,3.2078]
[1743383171234,1.10987,1802.2,1802.0,3.2078]
[1743383171420,1.8904,1802.1,1802.0,3.2078]
[1743383171727,1.8904,1802.1,1802.0,4.31776]
[1743383172024,1.8904,1802.1,1802.0,11.68751793]
[1743383172229,1.8904,1802.1,1802.0,4.31776]
[1743383172831,1.8904,1802.1,1801.9,0.00832616]
[1743383173030,1.11015,1801.7,1801.5,55.935]
[1743383173231,1.11011,1801.8,1801.5,1.11025]
[1743383173633,1.11015,1801.7,1801.6,3.2078]
[1743383173931,1.11019,1801.7,1801.4,8.2648]
[1743383174127,1.11019,1801.7,1801.4,9.37511]
[1743383174320,1.863,1802.0,1801.6,3.2078]
[1743383174521,0.00832616,1802.2,1802.1,1.1099]
[1743383174719,2.7729,1803.4,1802.1,1.1099]
[1743383174720,5.97952,1804.1,1802.6,2.77394]
[1743383174921,5.97952,1804.1,1803.7,4.31666]
[1743383174922,1.1087,1804.1,1803.7,4.31666]
[1743383175122,3.644,1804.5,1803.6,3.2078]
[1743383175325,1.10858,1804.3,1803.9,4.31658]
[1743383175536,1.10858,1804.3,1803.9,3.2078]
[1743383175718,3.644,1804.5,1803.9,3.2078]
[1743383175927,0.00832616,1804.3,1803.9,0.00832616]
[1743383176230,1.10867,1804.1,1803.9,0.00832616]
[1743383176623,1.7275,1804.0,1803.8,3.2078]
[1743383176830,1.7275,1804.0,1803.5,3.2078]
[1743383177029,1.7275,1804.0,1803.8,1.10885]
[1743383177329,1.7275,1804.0,1803.9,3.2078]
[1743383177629,1.7275,1804.0,1803.7,4.31671]
[1743383177834,1.7275,1804.0,1803.8,0.00832616]
[1743383178036,1.10891,1803.8,1803.5,3.2078]
[1743383178230,1.7925,1803.7,1803.5,3.2078]
[1743383178430,1.10898,1803.6,1803.3,5.101]
[1743383178633,1.7925,1803.5,1803.3,6.21015]
[1743383178830,1.7925,1803.5,1803.3,5.101]
[1743383179131,1.7925,1803.5,1803.4,1.1091]
[1743383179328,3.2078,1804.1,1803.7,1.1089]
[1743383179329,1.10872,1804.1,1803.7,1.1089]
[1743383179637,1.7925,1804.0,1803.7,1.10891]
[1743383179832,1.7925,1804.0,1803.6,3.2078]
[1743383180234,1.7925,1804.0,1803.8,4.31663]
[1743383180432,1.7925,1804.0,1803.8,3.2078]
[1743383181034,0.00832616,1804.3,1803.8,8.3178]
[1743383181230,1.8042,1804.4,1804.3,1.10855]
[1743383181530,1.8042,1804.9,1804.3,5.1392]
[1743383181735,1.10833,1804.7,1804.4,8.24598857]
[1743383181929,2.91257,1804.6,1804.4,7.13752857]
[1743383182128,1.8042,1804.6,1804.4,7.13752857]
[1743383182431,1.8042,1804.6,1804.4,10.34532857]
[1743383182637,1.8042,1804.6,1804.4,11.45378857]
[1743383182828,1.10849,1804.4,1804.3,0.00832616]
[1743383183039,1.7256,1804.6,1804.4,1.10843]
[1743383183336,1.10849,1804.4,1804.3,0.00832616]
[1743383183537,1.10849,1804.4,1803.6,8.3128]
[1743383183830,3.2078,1804.0,1803.3,55.896]
[1743383184032,1.10908,1803.5,1803.1,4.31704]
[1743383184237,1.7256,1803.4,1803.1,5.105]
[1743383184434,1.7256,1803.4,1803.3,1.10916]
[1743383184734,1.73392616,1803.4,1803.3,1.10916]
[1743383185038,1.73392616,1803.4,1803.2,3.2335]
[1743383185234,3.2078,1804.2,1803.3,21.74870919]
[1743383185536,1.10819,1804.9,1804.1,3.2078]
[1743383185733,4.9334,1804.8,1804.4,1.10844]
[1743383186031,1.1083,1804.7,1804.4,1.10844]
[1743383186236,1.1083,1804.7,1804.3,3.2078]
[1743383186237,1.8585,1804.6,1804.5,4.31622]
[1743383186430,1.8585,1804.6,1804.5,11.580906]
[1743383186629,5.08295232,1804.6,1804.5,11.580906]
[1743383186835,5.08295232,1804.6,1804.4,7.10743464]
[1743383187035,1.8585,1804.6,1804.5,1.10842]
[1743383187231,1.8585,1804.6,1804.4,0.00832616]
[1743383187232,1.8585,1804.6,1804.4,1.11676616]
[1743383187434,3.2078,1804.5,1803.6,3.2078]
[1743383187640,3.2078,1804.5,1803.3,5.7304]
[1743383187641,3.2078,1804.1,1803.3,5.7304]
[1743383187939,8.3818,1804.3,1803.6,3.2078]
[1743383188239,1.10874,1804.0,1803.7,1.10888]
[1743383188436,3.22445232,1804.2,1803.6,3.2078]
[1743383188741,6.43225232,1804.2,1803.8,3.2078]
[1743383188943,3.22445232,1804.1,1803.9,1.10879]
[1743383189241,1.10881,1803.9,1803.7,8.38312616]
[1743383189438,3.22445232,1804.0,1803.7,8.38312616]
[1743383189635,3.22445232,1804.1,1803.9,4.31654]
[1743383189835,3.22445232,1804.1,1803.9,3.2078]
[1743383190030,4.33316232,1804.1,1803.9,3.2078]
[1743383190238,4.33320232,1804.0,1803.7,6.28421616]
[1743383190431,1.1087,1804.1,1803.8,4.31665]
[1743383190637,1.7969,1804.0,1803.8,4.31665]
[1743383190846,6.13011232,1804.0,1803.8,3.2078]
[1743383191041,3.22445232,1803.9,1803.8,4.31665]
[1743383191240,1.10885,1803.8,1803.7,0.00832616]
[1743383191440,5.02135232,1803.8,1803.7,0.00832616]
[1743383191844,6.13020232,1803.8,1803.7,0.00832616]
[1743383192043,5.02135232,1803.8,1803.4,1.1091]
[1743383192348,1.109,1803.6,1803.3,3.2078]
[1743383192551,4.33340232,1803.7,1803.4,1.10908]
[1743383192844,3.22445232,1803.6,1803.4,1.10908]
[1743383193039,3.22445232,1803.6,1803.5,4.31684]
[1743383193244,0.00832616,1803.7,1803.6,1.10898]
[1743383193445,0.00832616,1803.7,1803.5,3.2078]
[1743383193643,0.00832616,1803.7,1803.5,4.3168]
[1743383193846,0.00832616,1803.7,1803.6,1.10898]
[1743383194041,0.00832616,1803.7,1803.5,4.3168]
[1743383195143,1.89972616,1803.7,1803.6,1.10898]
[1743383196046,0.00832616,1803.7,1803.6,6.87438]
[1743383196248,0.00832616,1803.7,1803.6,16.64536981]
[1743383196642,1.8914,1804.1,1804.0,1.10873]
[1743383196841,3.2078,1805.1,1804.2,2.77153]
[1743383197044,3.2078,1805.1,1804.1,3.2078]
[1743383197045,1.8914,1804.8,1804.1,3.2078]
[1743383197246,3.2078,1804.6,1804.1,3.2078]
[1743383197451,1.8914,1804.5,1803.9,64.2258]
[1743383197751,2.99985,1804.5,1804.2,4.31636]
[1743383197950,0.00832616,1804.4,1804.3,6.23555]
[1743383198151,0.00832616,1804.4,1804.3,16.49557441]
[1743383198352,0.00832616,1804.4,1804.3,18.99557441]
[1743383198555,0.00832616,1804.4,1804.3,11.94335]
[1743383199048,0.00832616,1804.4,1804.3,19.18212057]
[1743383199757,1.868,1805.3,1805.2,1.10799]
[1743383199953,5.09245232,1805.3,1805.2,4.31579]
[1743383200448,3.22445232,1805.3,1805.2,4.31579]
[1743383201046,3.22445232,1805.3,1805.2,1.10799]
[1743383201349,4.97805232,1805.3,1805.2,1.10799]
[1743383201647,1.7536,1805.3,1805.2,4.31579]
[1743383202352,0.00832616,1805.4,1805.3,1.10793]
[1743383202549,3.23277848,1805.4,1805.3,1.10793]
[1743383202750,0.00832616,1805.4,1805.3,1.10793]
[1743383203347,3.23277848,1805.4,1805.2,9.45875]
[1743383203553,1.7536,1805.3,1805.2,9.45875]
[1743383204850,1.7536,1805.3,1805.2,16.57158628]
[1743383205258,0.00832616,1805.4,1805.3,1.10793]
[1743383205455,0.00832616,1805.4,1805.3,1.19233]
[1743383205755,0.00832616,1805.4,1805.3,8.45907369]
[1743383205950,0.00832616,1805.4,1805.3,1.10793]
[1743383206552,0.00832616,1805.4,1805.2,8.9052]
[1743383206553,3.23277848,1805.4,1805.2,4.31575]
[1743383206755,1.7498,1805.3,1805.2,4.31575]
[1743383206951,4.97425232,1805.3,1805.2,4.31575]
[1743383207250,0.00832616,1805.4,1805.3,1.10793]
[1743383207656,0.00832616,1805.4,1805.3,8.23072474]
[1743383208354,1.7729,1806.4,1806.1,1.10742]
[1743383208651,1.7817,1806.1,1806.0,1.1075]
[1743383208849,1.7817,1806.1,1806.0,4.3153]
[1743383209044,1.7817,1806.1,1806.0,11.67359366]
[1743383209254,5.00615232,1806.1,1806.0,11.58919366]
[1743383209552,5.00615232,1806.1,1806.0,4.3153]
[1743383210055,0.00832616,1806.2,1806.1,1.10744]
[1743383210353,6.16e-06,1806.2,1806.1,1.10744]
[1743383210546,6.16e-06,1806.2,1806.1,10.83967891]
[1743383211147,6.16e-06,1806.2,1806.1,7.23223891]
[1743383211454,3.22445848,1806.2,1806.0,3.2078]
[1743383211648,5.01285232,1806.1,1806.0,4.3153]
[1743383212350,1.7884,1806.1,1806.0,4.3153]
[1743383213266,6.16e-06,1806.2,1806.1,1.10744]
[1743383213471,6.16e-06,1806.2,1806.1,6.31934]
[1743383213659,6.16e-06,1806.2,1806.1,13.51400078]
[1743383213859,6.16e-06,1806.2,1806.1,24.36230078]
[1743383214471,6.16e-06,1806.2,1806.1,30.84552413]
[1743383215066,1.9201,1806.9,1806.7,1.10704]